fUSD/lending_fUSD_20250720
["ID","MTS","AMOUNT","RATE_DAILY","PERIOD"]
[373393045,1752983463650,-570.86,0.00019506,2]
[373393046,1752983463660,-480.0,0.00019506,2]
[373393047,1752983463670,-480.0,0.00019506,2]
[373393048,1752983463680,-480.0,0.00019506,2]
[373393049,1752983463690,-3264.72,0.00019506,2]
[373393050,1752983463699,-480.0,0.00019506,2]
[373393051,1752983463709,-480.0,0.00019506,2]
[373393052,1752983463721,-838.65,0.00019506,2]
[373393053,1752983463731,-480.0,0.00019506,2]
[373393054,1752983463740,-709.89,0.00019506,2]
[373393055,1752983463750,-713.6,0.00019506,2]
[373393056,1752983463759,-323.12754904,0.00019506,2]
[373393057,1752983463771,-480.0,0.00019506,2]
[373393058,1752983463780,-218.98357483,0.00019506,2]
[373393059,1752983463790,-480.0,0.00019506,2]
[373393060,1752983463799,-894.47,0.00019506,2]
[373393061,1752983463809,-480.0,0.00019506,2]
[373393062,1752983463819,-691.65,0.00019506,2]
[373393063,1752983463829,-480.0,0.00019506,2]
[373393064,1752983463839,-480.0,0.00019506,2]
[373393065,1752983463849,-480.0,0.00019506,2]
[373393066,1752983463859,-480.0,0.00019506,2]
[373393067,1752983463868,-480.0,0.00019506,2]
[373393068,1752983463878,-480.0,0.00019506,2]
[373393069,1752983463887,-480.0,0.00019506,2]
[373393070,1752983463897,-480.0,0.00019506,2]
[373393071,1752983463906,-511.78,0.00019506,2]
[373393072,1752983463916,-480.0,0.00019506,2]
[373393073,1752983463930,-480.0,0.00019506,2]
[373393074,1752983463941,-480.0,0.00019506,2]
[373393075,1752983463951,-480.0,0.00019506,2]
[373393076,1752983463960,-480.0,0.00019506,2]
[373393077,1752983463970,-481.61,0.00019506,2]
[373393078,1752983463980,-480.0,0.00019506,2]
[373393079,1752983463990,-1456.33,0.00019506,2]
[373393080,1752983464000,-480.0,0.00019506,2]
[373393081,1752983464011,-577.39,0.00019506,2]
[373393082,1752983464021,-480.0,0.00019506,2]
[373393083,1752983464031,-569.49,0.00019506,2]
[373393084,1752983464040,-480.0,0.00019506,2]
[373393085,1752983464050,-480.0,0.00019506,2]
[373393086,1752983464060,-480.0,0.00019506,2]
[373393087,1752983464070,-480.0,0.00019506,2]
[373393088,1752983464079,-480.0,0.00019506,2]
[373393089,1752983464089,-495.68,0.00019506,2]
[373393090,1752983464099,-480.0,0.00019506,2]
[373393091,1752983464110,-480.0,0.00019506,2]
[373393092,1752983464120,-480.0,0.00019506,2]
[373393093,1752983464130,-480.0,0.00019506,2]
[373393094,1752983464140,-480.0,0.00019506,2]
[373393095,1752983464150,-480.0,0.00019506,2]
[373393096,1752983464160,-480.0,0.00019506,2]
[373393097,1752983464172,-480.0,0.00019506,2]
[373393098,1752983464183,-1715.52,0.00019506,2]
[373393099,1752983464193,-480.0,0.00019506,2]
[373393100,1752983464203,-877.24,0.00019506,2]
[373393101,1752983464214,-480.0,0.00019506,2]
[373393102,1752983464223,-480.0,0.00019506,2]
[373393103,1752983464234,-480.0,0.00019506,2]
[373393104,1752983464249,-480.0,0.00019506,2]
[373393105,1752983464261,-480.0,0.00019506,2]
[373393106,1752983464271,-480.0,0.00019506,2]
[373393107,1752983464281,-480.0,0.00019506,2]
[373393108,1752983464291,-749.25,0.00019506,2]
[373393109,1752983464302,-480.0,0.00019506,2]
[373393110,1752983464312,-480.0,0.00019506,2]
[373393111,1752983464322,-480.0,0.00019506,2]
[373393112,1752983464332,-240.9245868,0.00019506,2]
[373393113,1752983464342,-670.57,0.00019506,2]
[373393114,1752983464352,-541.28,0.00019506,2]
[373393115,1752983464362,-769.19,0.00019506,2]
[373393116,1752983464372,-634.92,0.00019506,2]
[373393117,1752983464382,-480.0,0.00019506,2]
[373393118,1752983464392,-480.0,0.00019506,2]
[373393119,1752983464402,-480.0,0.00019506,2]
[373393120,1752983464412,-1354.22,0.00019506,2]
[373393121,1752983464422,-1092.47,0.00019506,2]
[373393122,1752983464432,-480.0,0.00019506,2]
[373393123,1752983464442,-480.0,0.00019506,2]
[373393124,1752983464452,-480.0,0.00019506,2]
[373393125,1752983464462,-480.0,0.00019506,2]
[373393126,1752983464472,-480.0,0.00019506,2]
[373393127,1752983464482,-480.0,0.00019506,2]
[373393128,1752983464491,-480.0,0.00019506,2]
[373393129,1752983464501,-717.34,0.00019506,2]
[373393130,1752983464511,-599.74,0.00019506,2]
[373393131,1752983464520,-840.34,0.00019506,2]
[373393132,1752983464530,-480.0,0.00019506,2]
[373393133,1752983464540,-2426.64,0.00019506,2]
[373393134,1752983464550,-247.96107767,0.00019506,2]
[373393135,1752983464559,-616.16,0.00019506,2]
[373393136,1752983464569,-722.53,0.00019506,2]
[373393137,1752983464579,-598.54,0.00019506,2]
[373393138,1752983464589,-343.08485601,0.00019506,2]
[373393139,1752983464599,-480.0,0.00019506,2]
[373393140,1752983464608,-480.0,0.00019506,2]
[373393141,1752983464618,-480.0,0.00019506,2]
[373393142,1752983464629,-861.79,0.00019506,2]
[373393143,1752983464638,-480.0,0.00019506,2]
[373393144,1752983464647,-586.0,0.00019506,2]
[373393145,1752983464657,-480.0,0.00019506,2]
[373393146,1752983464666,-480.0,0.00019506,2]
[373393147,1752983464676,-480.0,0.00019506,2]
[373393148,1752983464687,-166.98057595,0.00019506,2]
[373393149,1752983464696,-480.0,0.00019506,2]
[373393150,1752983464708,-480.0,0.00019506,2]
[373393151,1752983464719,-2497.32,0.00019506,2]
[373393152,1752983464729,-535.24,0.00019506,2]
[373393153,1752983464739,-480.0,0.00019506,2]
[373393154,1752983464751,-480.0,0.00019506,2]
[373393155,1752983464760,-480.0,0.00019506,2]
[373393156,1752983464770,-480.0,0.00019506,2]
[373393157,1752983464779,-557.5,0.00019506,2]
[373393158,1752983464789,-907.84,0.00019506,2]
[373393159,1752983464798,-480.0,0.00019506,2]
[373393160,1752983464808,-480.0,0.00019506,2]
[373393161,1752983464818,-480.0,0.00019506,2]
[373393162,1752983464827,-865.51,0.00019506,2]
[373393163,1752983464837,-480.0,0.00019506,2]
[373393164,1752983464847,-480.0,0.00019506,2]
[373393165,1752983464856,-3620.19,0.00019506,2]
[373393166,1752983464866,-480.0,0.00019506,2]
[373393167,1752983464875,-480.0,0.00019506,2]
[373393168,1752983464885,-480.0,0.00019506,2]
[373393169,1752983464895,-480.0,0.00019506,2]
[373393170,1752983464905,-480.0,0.00019506,2]
[373393171,1752983464915,-480.0,0.00019506,2]
[373393172,1752983464930,-480.0,0.00019506,2]
[373393173,1752983464942,-480.0,0.00019506,2]
[373393174,1752983464952,-560.23,0.00019506,2]
[373393175,1752983464961,-603.48,0.00019506,2]
[373393176,1752983464972,-480.0,0.00019506,2]
[373393177,1752983464981,-480.0,0.00019506,2]
[373393178,1752983464991,-480.0,0.00019506,2]
[373393179,1752983465002,-480.0,0.00019506,2]
[373393180,1752983465012,-480.0,0.00019506,2]
[373393181,1752983465022,-480.0,0.00019506,2]
[373393182,1752983465032,-1069.69,0.00019506,2]
[373393183,1752983465042,-480.0,0.00019506,2]
[373393184,1752983465315,-480.0,0.00019506,2]
[373393185,1752983465329,-480.0,0.00019506,2]
[373393186,1752983465339,-480.0,0.00019506,2]
[373393187,1752983465349,-480.0,0.00019506,2]
[373393188,1752983465359,-480.0,0.00019506,2]
[373393189,1752983465368,-729.23,0.00019506,2]
[373393190,1752983465378,-480.0,0.00019506,2]
[373393191,1752983465388,-1171.35,0.00019506,2]
[373393192,1752983465398,-480.0,0.00019506,2]
[373393193,1752983465407,-622.42,0.00019506,2]
[373393194,1752983465417,-576.89,0.00019506,2]
[373393195,1752983465426,-612.71,0.00019506,2]
[373393196,1752983465435,-1058.61,0.00019506,2]
[373393197,1752983465448,-480.0,0.00019506,2]
[373393198,1752983465457,-480.0,0.00019506,2]
[373393199,1752983465467,-569.98,0.00019506,2]
[373393200,1752983465476,-303.72700869,0.00019506,2]
[373393201,1752983465485,-666.31,0.00019506,2]
[373393202,1752983465495,-480.0,0.00019506,2]
[373393203,1752983465504,-665.25,0.00019506,2]
[373393204,1752983465514,-480.0,0.00019506,2]
[373393205,1752983465523,-564.81,0.00019506,2]
[373393206,1752983465532,-480.0,0.00019506,2]
[373393207,1752983465542,-480.0,0.00019506,2]
[373393208,1752983465551,-480.0,0.00019506,2]
[373393209,1752983465560,-480.0,0.00019506,2]
[373393210,1752983465570,-1362.16,0.00019506,2]
[373393211,1752983465579,-998.92,0.00019506,2]
[373393212,1752983465589,-480.0,0.00019506,2]
[373393213,1752983465599,-480.0,0.00019506,2]
[373393214,1752983465608,-4150.67,0.00019506,2]
[373393215,1752983465617,-480.0,0.00019506,2]
[373393216,1752983465627,-572.02,0.00019506,2]
[373393217,1752983465636,-944.0,0.00019506,2]
[373393218,1752983465646,-480.0,0.00019506,2]
[373393219,1752983465655,-480.0,0.00019506,2]
[373393220,1752983465665,-480.0,0.00019506,2]
[373393221,1752983465674,-480.0,0.00019506,2]
[373393222,1752983465684,-724.16,0.00019506,2]
[373393223,1752983465694,-480.0,0.00019506,2]
[373393224,1752983465704,-356.53041729,0.00019506,2]
[373393225,1752983465713,-480.0,0.00019506,2]
[373393226,1752983465723,-480.0,0.00019506,2]
[373393227,1752983465732,-480.0,0.00019506,2]
[373393228,1752983465742,-598.27,0.00019506,2]
[373393229,1752983465751,-2786.78,0.00019506,2]
[373393230,1752983465761,-1995.87,0.00019506,2]
[373393231,1752983465770,-192.51691809,0.00019506,2]
[373393232,1752983465780,-2932.88,0.00019506,2]
[373393233,1752983465790,-492.28,0.00019506,2]
[373393234,1752983465799,-1466.09,0.00019506,2]
[373393235,1752983465809,-2112.79,0.00019506,2]
[373393236,1752983465818,-480.0,0.00019506,2]
[373393237,1752983465828,-744.22,0.00019506,2]
[373393238,1752983465839,-620.4,0.00019506,2]
[373393239,1752983465849,-25668.77,0.00019506,2]
[373393240,1752983465858,-1176.16,0.00019506,2]
[373393241,1752983465867,-2179.52,0.00019506,2]
[373393242,1752983465877,-1586.62,0.00019506,2]
[373393243,1752983465887,-1189.06,0.00019506,2]
[373393244,1752983465896,-1511.3,0.00019506,2]
[373393245,1752983465906,-1000.0,0.00019506,2]
[373393246,1752983465915,-480.0,0.00019506,2]
[373393247,1752983465929,-480.0,0.00019506,2]
[373393248,1752983465940,-480.0,0.00019506,2]
[373393249,1752983465950,-2984.78,0.00019506,2]
[373393250,1752983465959,-480.0,0.00019506,2]
[373393251,1752983465970,-2090.67,0.00019506,2]
[373393252,1752983465980,-480.0,0.00019506,2]
[373393253,1752983465990,-561.29,0.00019506,2]
[373393254,1752983466000,-508.18,0.00019506,2]
[373393255,1752983466010,-480.0,0.00019506,2]
[373393256,1752983466020,-1108.76,0.00019506,2]
[373393257,1752983466029,-1074.07,0.00019506,2]
[373393258,1752983466038,-599.06,0.00019506,2]
[373393259,1752983466047,-594.66,0.00019506,2]
[373393260,1752983466056,-480.0,0.00019506,2]
[373393261,1752983466065,-677.5,0.00019506,2]
[373393262,1752983466075,-1173.26,0.00019506,2]
[373393263,1752983466084,-480.0,0.00019506,2]
[373393264,1752983466093,-480.0,0.00019506,2]
[373393265,1752983466103,-480.0,0.00019506,2]
[373393266,1752983466112,-1092.95,0.00019506,2]
[373393267,1752983466121,-480.0,0.00019506,2]
[373393268,1752983466130,-1196.13,0.00019506,2]
[373393269,1752983466140,-554.23,0.00019506,2]
[373393270,1752983466149,-480.0,0.00019506,2]
[373393271,1752983466158,-2022.45,0.00019506,2]
[373393272,1752983466167,-480.0,0.00019506,2]
[373393273,1752983466177,-1063.23,0.00019506,2]
[373393274,1752983466188,-480.0,0.00019506,2]
[373393275,1752983466197,-480.0,0.00019506,2]
[373393276,1752983466207,-1415.84,0.00019506,2]
[373393277,1752983466217,-480.0,0.00019506,2]
[373393278,1752983466227,-636.97,0.00019506,2]
[373393279,1752983466237,-480.0,0.00019506,2]
[373393280,1752983466246,-475.67806951,0.00019506,2]
[373393281,1752983466256,-963.4,0.00019506,2]
[373393282,1752983466266,-1525.7,0.00019506,2]
[373393283,1752983466277,-1895.08,0.00019506,2]
[373393284,1752983466287,-1610.82,0.00019506,2]
[373393285,1752983466296,-480.0,0.00019506,2]
[373393286,1752983466306,-1215.54,0.00019506,2]
[373393287,1752983466316,-480.0,0.00019506,2]
[373393288,1752983466326,-1097.31,0.00019506,2]
[373393289,1752983466336,-824.3,0.00019506,2]
[373393290,1752983466346,-574.78,0.00019506,2]
[373393291,1752983466356,-1533.87,0.00019506,2]
[373393292,1752983466366,-2871.0,0.00019506,2]
[373393293,1752983466376,-658.86,0.00019506,2]
[373393294,1752983466386,-480.0,0.00019506,2]
[373393295,1752983466395,-480.0,0.00019506,2]
[373393296,1752983466405,-779.13,0.00019506,2]
[373393297,1752983466415,-480.0,0.00019506,2]
[373393298,1752983466424,-715.66,0.00019506,2]
[373393299,1752983466434,-1144.05,0.00019506,2]
[373393300,1752983466443,-480.0,0.00019506,2]
[373393301,1752983466454,-480.0,0.00019506,2]
[373393302,1752983466463,-480.0,0.00019506,2]
[373393303,1752983466473,-2201.2,0.00019506,2]
[373393304,1752983466482,-480.0,0.00019506,2]
[373393305,1752983466492,-480.0,0.00019506,2]
[373393306,1752983466503,-808.57,0.00019506,2]
[373393307,1752983466512,-801.49,0.00019506,2]
[373393308,1752983466522,-698.78,0.00019506,2]
[373393309,1752983466534,-1015.45,0.00019506,2]
[373393310,1752983466544,-480.0,0.00019506,2]
[373393311,1752983466554,-735.6,0.00019506,2]
[373393312,1752983466563,-687.01,0.00019506,2]
[373393313,1752983466572,-744.84,0.00019506,2]
[373393314,1752983466582,-1347.49,0.00019506,2]
[373393315,1752983466592,-1419.47,0.00019506,2]
[373393316,1752983466601,-558.96,0.00019506,2]
[373393317,1752983466611,-767.14,0.00019506,2]
[373393318,1752983466621,-1138.92,0.00019506,2]
[373393319,1752983466631,-2980.46,0.00019506,2]
[373393320,1752983466642,-480.0,0.00019506,2]
[373393321,1752983466651,-2554.58,0.00019506,2]
[373393322,1752983466660,-480.0,0.00019506,2]
[373393323,1752983466670,-5450.5,0.00019506,2]
[373393324,1752983466679,-1452.34,0.00019506,2]
[373393325,1752983466690,-480.0,0.00019506,2]
[373393326,1752983466699,-963.43,0.00019506,2]
[373393327,1752983466709,-480.0,0.00019506,2]
[373393328,1752983466718,-522.13,0.00019506,2]
[373393329,1752983466727,-560.16,0.00019506,2]
[373393330,1752983466738,-871.9,0.00019506,2]
[373393331,1752983466747,-5052.22,0.00019506,2]
[373393332,1752983466759,-480.0,0.00019506,2]
[373393333,1752983466768,-480.0,0.00019506,2]
[373393334,1752983466778,-3565.47,0.00019506,2]
[373393335,1752983466789,-754.49,0.00019506,2]
[373393336,1752983466798,-2105.48,0.00019506,2]
[373393337,1752983466807,-275.01498351,0.00019506,2]
[373393338,1752983466817,-480.0,0.00019506,2]
[373393339,1752983466826,-1124.66,0.00019506,2]
[373393340,1752983466836,-1024.27,0.00019506,2]
[373393341,1752983466846,-480.0,0.00019506,2]
[373393342,1752983466855,-480.0,0.00019506,2]
[373393343,1752983466864,-1090.09,0.00019506,2]
[373393344,1752983466874,-480.0,0.00019506,2]
[373393345,1752983466883,-480.0,0.00019506,2]
[373393346,1752983466892,-480.0,0.00019506,2]
[373393347,1752983466901,-1611.77,0.00019506,2]
[373393348,1752983466912,-962.24,0.00019506,2]
[373393349,1752983466926,-981.4,0.00019506,2]
[373393350,1752983466936,-574.47,0.00019506,2]
[373393351,1752983466946,-1356.81,0.00019506,2]
[373393352,1752983466955,-480.0,0.00019506,2]
[373393353,1752983466966,-546.15,0.00019506,2]
[373393354,1752983466975,-3984.36,0.00019506,2]
[373393355,1752983466984,-480.0,0.00019506,2]
[373393356,1752983466994,-480.0,0.00019506,2]
[373393357,1752983467004,-480.0,0.00019506,2]
[373393358,1752983467014,-926.3,0.00019506,2]
[373393359,1752983467024,-1367.25,0.00019506,2]
[373393360,1752983467034,-6148.42,0.00019506,2]
[373393361,1752983467043,-2405.36,0.00019506,2]
[373393362,1752983467053,-737.19,0.00019506,2]
[373393363,1752983467062,-480.0,0.00019506,2]
[373393364,1752983467071,-719.9,0.00019506,2]
[373393365,1752983467081,-480.0,0.00019506,2]
[373393366,1752983467090,-1466.72,0.00019506,2]
[373393367,1752983467100,-2248.06,0.00019506,2]
[373393368,1752983467109,-480.0,0.00019506,2]
[373393369,1752983467119,-2361.41,0.00019506,2]
[373393370,1752983467129,-588.73,0.00019506,2]
[373393371,1752983467139,-1192.49,0.00019506,2]
[373393372,1752983467149,-634.94,0.00019506,2]
[373393373,1752983467158,-364.57377294,0.00019506,2]
[373393374,1752983467168,-4793.06,0.00019506,2]
[373393375,1752983467178,-9577.74,0.00019506,2]
[373393376,1752983467188,-518.42,0.00019506,2]
[373393377,1752983467199,-480.0,0.00019506,2]
[373393378,1752983467209,-1250.81,0.00019506,2]
[373393379,1752983467219,-1405.91,0.00019506,2]
[373393380,1752983467229,-480.0,0.00019506,2]
[373393381,1752983467239,-480.0,0.00019506,2]
[373393382,1752983467249,-1082.66,0.00019506,2]
[373393383,1752983467258,-480.0,0.00019506,2]
[373393384,1752983467268,-480.0,0.00019506,2]
[373393385,1752983467278,-480.0,0.00019506,2]
[373393386,1752983467287,-1036.03,0.00019506,2]
[373393387,1752983467297,-786.35,0.00019506,2]
[373393388,1752983467307,-526.0,0.00019506,2]
[373393389,1752983467317,-480.0,0.00019506,2]
[373393390,1752983467327,-514.43,0.00019506,2]
[373393391,1752983467337,-1678.83,0.00019506,2]
[373393392,1752983467346,-1121.35,0.00019506,2]
[373393393,1752983467356,-831.0,0.00019506,2]
[373393394,1752983467366,-480.0,0.00019506,2]
[373393395,1752983467375,-773.36,0.00019506,2]
[373393396,1752983467385,-718.25,0.00019506,2]
[373393397,1752983467394,-805.94,0.00019506,2]
[373393398,1752983467404,-763.26,0.00019506,2]
[373393399,1752983467414,-601.17,0.00019506,2]
[373393400,1752983467424,-665.29,0.00019506,2]
[373393401,1752983467434,-480.0,0.00019506,2]
[373393402,1752983467443,-500.31488179,0.00019506,2]
[373393403,1752983467453,-480.0,0.00019506,2]
[373393404,1752983467463,-480.0,0.00019506,2]
[373393405,1752983467472,-3301.21,0.00019506,2]
[373393406,1752983467482,-1187.59,0.00019506,2]
[373393407,1752983467491,-480.0,0.00019506,2]
[373393408,1752983467500,-480.0,0.00019506,2]
[373393409,1752983467510,-480.0,0.00019506,2]
[373393410,1752983467520,-400.15619824,0.00019506,2]
[373393411,1752983467530,-821.65,0.00019506,2]
[373393412,1752983467539,-1685.67,0.00019506,2]
[373393413,1752983467548,-4076.0,0.00019506,2]
[373393414,1752983467558,-348.0860357,0.00019506,2]
[373393415,1752983467568,-3695.88,0.00019506,2]
[373393416,1752983467577,-731.19,0.00019506,2]
[373393417,1752983467587,-670.23,0.00019506,2]
[373393418,1752983467662,-1374.67,0.00019506,2]
[373393419,1752983467672,-480.0,0.00019506,2]
[373393420,1752983467682,-480.0,0.00019506,2]
[373393421,1752983467692,-1193.89,0.00019506,2]
[373393422,1752983467702,-1796.15,0.00019506,2]
[373393423,1752983467712,-1151.96,0.00019506,2]
[373393424,1752983467722,-850.76,0.00019506,2]
[373393425,1752983467732,-480.0,0.00019506,2]
[373393426,1752983467741,-480.0,0.00019506,2]
[373393427,1752983467751,-1267.3,0.00019506,2]
[373393428,1752983467765,-480.0,0.00019506,2]
[373393429,1752983467775,-1053.53,0.00019506,2]
[373393430,1752983467785,-536.82,0.00019506,2]
[373393431,1752983467794,-150.0,0.00019507,2]
[373393432,1752983467804,-159.94938587,0.00019516,2]
[373393433,1752983467813,-2665.17445914,0.00019516,2]
[373393434,1752983467823,-392.92115914,0.00019555,2]
[373393435,1752983467832,-200.0,0.00019563,2]
[373393436,1752983467841,-138906.0818881,0.00019602,2]
[373393437,1752983467850,-3475.0343985,0.00019602,2]
[373393438,1752983467859,-759.79,0.00019615,2]
[373393439,1752983467868,-759.79,0.00019615,2]
[373393440,1752983467878,-620.49,0.00019615,2]
[373393441,1752983467887,-620.49,0.00019615,2]
[373393442,1752983467896,-770.66,0.00019615,2]
[373393443,1752983467905,-770.66,0.00019615,2]
[373393444,1752983467915,-405.909386,0.00019616,2]
[373393445,1752983467929,-347.586308,0.00019616,2]
[373393446,1752983467939,-524.535421,0.00019616,2]
[373393447,1752983467948,-480.0,0.00019616,2]
[373393448,1752983467957,-480.0,0.00019616,2]
[373393449,1752983467966,-480.0,0.00019616,2]
[373393450,1752983467977,-480.0,0.00019616,2]
[373393451,1752983467986,-480.0,0.00019616,2]
[373393452,1752983467997,-480.0,0.00019616,2]
[373393453,1752983468006,-490.894792,0.00019616,2]
[373393454,1752983468015,-480.0,0.00019616,2]
[373393455,1752983468025,-480.0,0.00019616,2]
[373393456,1752983468034,-480.0,0.00019616,2]
[373393457,1752983468044,-480.0,0.00019616,2]
[373393458,1752983468053,-500.36166912,0.00019616,2]
[373393459,1752983468062,-480.0,0.00019616,2]
[373393460,1752983468072,-480.0,0.00019616,2]
[373393461,1752983468081,-480.0,0.00019616,2]
[373393462,1752983468090,-480.0,0.00019616,2]
[373393463,1752983468099,-480.0,0.00019616,2]
[373393464,1752983468109,-480.0,0.00019616,2]
[373393465,1752983468118,-480.0,0.00019616,2]
[373393466,1752983468127,-488.57,0.00019616,2]
[373393467,1752983468136,-526.79,0.00019616,2]
[373393468,1752983468147,-480.0,0.00019616,2]
[373393469,1752983468156,-480.0,0.00019616,2]
[373393470,1752983468165,-480.0,0.00019616,2]
[373393471,1752983468174,-480.0,0.00019616,2]
[373393472,1752983468183,-652.55,0.00019616,2]
[373393473,1752983468193,-480.0,0.00019616,2]
[373393474,1752983468202,-480.0,0.00019616,2]
[373393475,1752983468211,-480.0,0.00019616,2]
[373393476,1752983468220,-480.0,0.00019616,2]
[373393477,1752983468230,-480.0,0.00019616,2]
[373393478,1752983468239,-480.0,0.00019616,2]
[373393479,1752983468250,-496.94,0.00019616,2]
[373393480,1752983468259,-480.0,0.00019616,2]
[373393481,1752983468268,-194.95681313,0.00019616,2]
[373393482,1752983468277,-480.0,0.00019616,2]
[373393483,1752983468287,-480.0,0.00019616,2]
[373393484,1752983468297,-480.0,0.00019616,2]
[373393485,1752983468307,-800.28,0.00019616,2]
[373393486,1752983468317,-480.0,0.00019616,2]
[373393487,1752983468326,-678.96,0.00019616,2]
[373393488,1752983468335,-497.02,0.00019616,2]
[373393489,1752983468344,-480.0,0.00019616,2]
[373393490,1752983468353,-480.0,0.00019616,2]
[373393491,1752983468363,-480.0,0.00019616,2]
[373393492,1752983468372,-621.54,0.00019616,2]
[373393493,1752983468381,-480.0,0.00019616,2]
[373393494,1752983468391,-480.0,0.00019616,2]
[373393495,1752983468400,-480.0,0.00019616,2]
[373393496,1752983468409,-480.0,0.00019616,2]
[373393497,1752983468418,-480.0,0.00019616,2]
[373393498,1752983468427,-480.0,0.00019616,2]
[373393499,1752983468436,-596.67,0.00019616,2]
[373393500,1752983468445,-602.0,0.00019616,2]
[373393501,1752983468455,-480.0,0.00019616,2]
[373393502,1752983468464,-480.0,0.00019616,2]
[373393503,1752983468477,-570.86,0.00019616,2]
[373393504,1752983468487,-480.0,0.00019616,2]
[373393505,1752983468497,-500.41,0.00019616,2]
[373393506,1752983468506,-480.0,0.00019616,2]
[373393507,1752983468516,-480.0,0.00019616,2]
[373393508,1752983468526,-500.0,0.00019616,2]
[373393509,1752983468535,-3264.72,0.00019616,2]
[373393510,1752983468545,-480.0,0.00019616,2]
[373393511,1752983468555,-838.65,0.00019616,2]
[373393512,1752983468564,-709.89,0.00019616,2]
[373393513,1752983468574,-713.6,0.00019616,2]
[373393514,1752983468583,-480.0,0.00019616,2]
[373393515,1752983468592,-480.0,0.00019616,2]
[373393516,1752983468601,-480.0,0.00019616,2]
[373393517,1752983468609,-894.47,0.00019616,2]
[373393518,1752983468618,-480.0,0.00019616,2]
[373393519,1752983468628,-691.65,0.00019616,2]
[373393520,1752983468638,-480.0,0.00019616,2]
[373393521,1752983468648,-480.0,0.00019616,2]
[373393522,1752983468658,-480.0,0.00019616,2]
[373393523,1752983468667,-480.0,0.00019616,2]
[373393524,1752983468677,-480.0,0.00019616,2]
[373393525,1752983468686,-480.0,0.00019616,2]
[373393526,1752983468696,-480.0,0.00019616,2]
[373393527,1752983468705,-480.0,0.00019616,2]
[373393528,1752983468714,-511.78,0.00019616,2]
[373393529,1752983468723,-480.0,0.00019616,2]
[373393530,1752983468734,-480.0,0.00019616,2]
[373393531,1752983468746,-480.0,0.00019616,2]
[373393532,1752983468756,-480.0,0.00019616,2]
[373393533,1752983468765,-480.0,0.00019616,2]
[373393534,1752983468774,-481.61,0.00019616,2]
[373393535,1752983468783,-480.0,0.00019616,2]
[373393536,1752983468794,-1456.33,0.00019616,2]
[373393537,1752983468803,-491.65536799,0.00019616,2]
[373393538,1752983468815,-577.39,0.00019616,2]
[373393539,1752983468825,-480.0,0.00019616,2]
[373393540,1752983468834,-569.49,0.00019616,2]
[373393541,1752983468843,-480.0,0.00019616,2]
[373393542,1752983468852,-480.0,0.00019616,2]
[373393543,1752983468862,-480.0,0.00019616,2]
[373393544,1752983468871,-306.08,0.00019616,2]